fUSD/lending_fUSD_20241125
["ID","MTS","AMOUNT","RATE_DAILY","PERIOD"]
[343225357,1732492892527,576.0,0.000239,2]
[343225358,1732492893608,519.0,0.000239,2]
[343225385,1732493431500,-258.18747153,0.00042885,7]
[343225386,1732493431760,-1724.45142317,0.00042885,7]
[343225387,1732493431770,-457.65,0.00043132,2]
[343225388,1732493431780,-152.0,0.0004374,3]
[343225389,1732493431789,-270.0,0.0004474,30]
[343225390,1732493431799,-2605.509,0.00044919,2]
[343225391,1732493431808,-6743.64,0.00044919,2]
[343225392,1732493431817,-951.574,0.00044919,2]
[343225393,1732493431826,-173.951712,0.0004499,14]
[343225394,1732493431844,-35725.92454843,0.0004499,14]
[343225402,1732493437524,-1094.0,0.00044919,2]
[343225403,1732493437534,-1291.47819203,0.0004499,14]
[343225404,1732493437546,-1592.42457867,0.0004499,14]
[343225405,1732493437557,-323.79921957,0.0004499,14]
[343225406,1732493437579,-1274.59923059,0.0004499,14]
[343225419,1732493439507,-359.775,0.0004499,14]
[343225497,1732493442537,-6155.66711307,0.0004499,14]
[343225498,1732493442588,-584.12564271,0.0004499,14]
[343225499,1732493442600,-1778.79901336,0.0004499,14]
[343225500,1732493442611,-2474.62765587,0.0004499,14]
[343225501,1732493442800,-25536.7798057,0.0004499,14]
[343225502,1732493442810,-577.75,0.00045,120]
[343225503,1732493442819,-3750.0,0.00045,120]
[343225504,1732493442827,-20266.17487683,0.00045,120]
[343225505,1732493442839,-22962.09038652,0.00045,120]
[343225506,1732493442852,-4504.424935,0.00045,120]
[343225507,1732493442863,-2148.19944,0.00045,120]
[343225508,1732493442877,-3549.17022,0.00045,120]
[343225518,1732493445735,-2837.76751768,0.00045,120]
[343225526,1732493773883,151.0,0.0003,120]
[343225527,1732493797773,657.0,0.000239,2]
[343225562,1732494601654,918.0,0.0004,2]
[343225563,1732494602020,916.0,0.0004,2]
[343225564,1732494602340,916.0,0.0004,2]
[343225565,1732494602950,916.0,0.0004,2]
[343225566,1732494603246,150.0,0.000239,2]
[343225567,1732494603293,263.632,0.000377,2]
[343225568,1732494603490,150.0,0.000239,2]
[343225569,1732494603705,150.0,0.000239,2]
[343225570,1732494603920,150.0,0.000239,2]
[343225571,1732494604142,150.0,0.000239,2]
[343225572,1732494604359,150.0,0.000239,2]
[343225573,1732494604569,150.0,0.000239,2]
[343225574,1732494604783,277.52414937,0.000239,2]
[343225577,1732494613932,151.0,0.0003,120]
[343225607,1732494637879,-2090.144697,0.00040782,2]
[343225608,1732494637889,-577.5,0.00040988,2]
[343225609,1732494637898,-158.18,0.00041096,2]
[343225610,1732494637907,-156.02,0.00041096,2]
[343225611,1732494637916,-151.0,0.00042,120]
[343225612,1732494637927,-893.4980339,0.0004271,2]
[343225613,1732494637939,-377.0819661,0.0004271,2]
[343225614,1732494637948,-168.77511439,0.00042734,2]
[343225615,1732494637957,-377.01199512,0.00042761,2]
[343225616,1732494637967,-33.12196369,0.00042798,2]
[343225617,1732494637980,-225.09803631,0.00042798,2]
[343225618,1732494637990,-87.47965599,0.000428,30]
[343225622,1732494639696,-281.96,0.000428,30]
[343225649,1732494642682,-1601.63680701,0.000428,30]
[343225650,1732494642691,-3190.95951009,0.00042827,2]
[343225651,1732494642702,-4042.50600493,0.00042827,2]
[343225652,1732494642714,-10185.42001614,0.00042827,2]
[343225653,1732494642726,-6481.11446884,0.00042827,2]
[343225654,1732494642737,-2000.0,0.00042861,2]
[343225655,1732494642751,-250.0,0.00042861,2]
[343225656,1732494642760,-500.0,0.0004291,2]
[343225657,1732494642769,-281.55729715,0.00043,2]
[343225658,1732494642778,-165.33,0.00043164,120]
[343225659,1732494642787,-577.5,0.00043252,2]
[343225660,1732494642796,-1012.25,0.00043406,2]
[343225661,1732494642806,-300.0,0.000438,15]
[343225662,1732494642816,-299.99,0.000438,120]
[343225663,1732494642826,-3473.04,0.000438,2]
[343225664,1732494642836,-1829.54195215,0.000438,15]
[343225665,1732494642845,-317.05114301,0.000438,2]
[343225666,1732494642855,-421.93189667,0.00043839,2]
[343225667,1732494642865,-298.45329864,0.00043873,10]
[343225668,1732494642875,-500.0,0.00043873,2]
[343225669,1732494642885,-500.0,0.00043873,10]
[343225670,1732494642897,-4022.6,0.00043889,90]
[343225671,1732494642906,-635.03301917,0.00043889,2]
[343225672,1732494642928,-395.82996952,0.00043889,2]
[343225673,1732494642944,-704.35,0.00043889,2]
[343225675,1732494643028,-2827.46947527,0.00043889,2]
[343225677,1732494643040,-1570.13367642,0.00043889,2]
[343225678,1732494643051,-643.37385962,0.00043889,2]
[343225679,1732494643060,-2326.08611038,0.0004389,2]
[343225687,1732494645946,-2346.17388962,0.0004389,2]
[343225688,1732494645957,-448.09,0.0004389,30]
[343225689,1732494645966,-228.9,0.0004389,10]
[343225690,1732494645976,-373.41,0.0004389,30]
[343225691,1732494645986,-190.75,0.0004389,10]
[343225692,1732494645995,-311.18,0.0004389,30]
[343225693,1732494646004,-158.96,0.0004389,10]
[343225694,1732494646014,-259.31,0.0004389,30]
[343225695,1732494646023,-500.0,0.00043899,31]
[343225696,1732494646034,-500.0,0.00043899,31]
[343225697,1732494646044,-500.0,0.00043899,31]
[343225698,1732494646053,-232.60531397,0.00043899,120]
[343225700,1732494646066,-632.42637038,0.00043899,31]
[343225701,1732494646080,-155.17421119,0.00043899,31]
[343225702,1732494646095,-188550.53745932,0.000439,12]
[343225703,1732494646111,-250.99909974,0.000439,12]
[343225704,1732494701485,734.0,0.000239,2]
[343225705,1732494932382,157.6,0.0004,2]
[343225707,1732495301008,2994.65065796,0.00027,7]
[343225708,1732495325171,250.0,0.0004,7]
[343225709,1732495364701,250.0,0.0004,30]
[343225710,1732495449882,250.0,0.0004,3]
[343225711,1732495485516,250.0,0.0004,7]
[343225712,1732495503549,150.0,0.00034548,10]
[343225717,1732495608905,250.0,0.0004,4]
[343225718,1732495629647,250.0,0.0004,14]
[343225719,1732495651905,250.0,0.0004,14]
[343225720,1732495689178,250.0,0.0004,10]
[343225721,1732495709863,250.0,0.0004,30]
[343225722,1732495720130,250.0,0.00031,2]
[343225723,1732495721197,300.0,0.00033,2]
[343225724,1732495722275,350.0,0.00035,2]
[343225725,1732495723360,400.0,0.00037,2]
[343225726,1732495724440,450.0,0.00039,2]
[343225731,1732495759284,20152.0,0.0004,20]
[343225734,1732495780504,250.0,0.0004,20]
[343225741,1732495831858,-250.0,0.000406,10]
[343225742,1732495831867,-462.49501741,0.00040626,2]
[343225743,1732495831919,-109.00498259,0.00040626,2]
[343225744,1732495831929,-166.96340399,0.00040896,2]
[343225745,1732495831939,-1395.12775194,0.00040917,2]
[343225746,1732495832034,-917.61691343,0.00040917,2]
[343225747,1732495832046,-5246.25533463,0.00040917,2]
[343225748,1732495832055,-158.25,0.00041096,2]
[343225749,1732495832065,-174.41073934,0.00041096,2]
[343225750,1732495832075,-150.52,0.00042054,2]
[343225751,1732495832085,-1120.91,0.00042163,2]
[343225752,1732495832095,-253.97,0.00042178,2]
[343225754,1732495832106,-12185.89201353,0.00042186,2]
[343225756,1732495832124,-1611.31619998,0.00042186,2]
[343225793,1732495837831,-932.84999996,0.00040526,2]
[343225794,1732495837840,-10102.79178649,0.00042186,2]
[343225795,1732495837850,-250.0,0.00042204,120]
[343225796,1732495837859,-150.0,0.00042207,2]
[343225797,1732495837869,-2597.98846834,0.00042207,2]
[343225798,1732495837897,-388.72153166,0.00042207,2]
[343225799,1732495837907,-1000.0,0.00042216,2]
[343225800,1732495837916,-177.87,0.0004222,2]
[343225801,1732495837927,-297.13693636,0.00042254,2]
[343225802,1732495838196,-372.24306364,0.00042254,2]
[343225803,1732495838206,-2573.8836701,0.00042254,30]
[343225827,1732495842788,-4190.9563299,0.00042254,30]
[343225828,1732495842798,-771.76934304,0.00042265,120]
[343225829,1732495842809,-623.533429,0.00042265,120]
[343225830,1732495842855,-1355.69722796,0.00042265,120]
[343225831,1732495842865,-1751.96,0.00042271,2]
[343225832,1732495842874,-500.0,0.00042332,2]
[343225833,1732495842883,-1253.74,0.00042398,120]
[343225834,1732495842892,-293.04035058,0.00042398,2]
[343225835,1732495842903,-500.20964942,0.00042398,2]
[343225836,1732495842912,-250.0,0.00042404,2]
[343225837,1732495842924,-248.0,0.0004242,2]
[343225838,1732495842933,-529.54,0.0004242,2]
[343225839,1732495842942,-166.47,0.0004244,2]
[343225840,1732495842951,-250.0,0.00042473,2]
[343225841,1732495842960,-170.3,0.0004254,120]
[343225842,1732495842970,-155.83,0.00042673,120]
[343225843,1732495842979,-159.57,0.00042707,2]
[343225844,1732495842988,-571.5,0.0004289,2]
[343225845,1732495842998,-250.0,0.00043,31]
[343225846,1732495843007,-421.93189667,0.00043089,2]
[343225847,1732495843016,-249.00424349,0.00043316,2]
[343225861,1732495845882,-172.92765318,0.00043316,2]
[343225862,1732495845892,-618.70934556,0.0004345,18]
[343225863,1732495845904,-213.19162444,0.0004345,18]
[343225864,1732495845914,-796.90821556,0.0004347,2]
[343225865,1732495845938,-834.82615401,0.0004347,2]
[343225870,1732495905426,250.0,0.0004,60]
[343225871,1732495925588,250.0,0.0004,45]
[343225872,1732495989726,250.0,0.0004,11]
[343225873,1732495996774,250.0,0.0004,11]
[343225874,1732496035062,250.0,0.0004,4]
[343225875,1732496042226,250.0,0.0004,4]
[343225876,1732496073923,260.72,0.0004,40]
[343225882,1732496509261,710.0,0.000239,2]
[343225883,1732496509944,639.0,0.000239,2]
[343225902,1732497015634,2742.80610553,0.0004,2]
[343225925,1732497032181,-794.8,0.00040035,10]
[343225926,1732497032191,-550.0,0.00040044,5]
[343225927,1732497032200,-125411.0,0.00040045,2]
[343225928,1732497032209,-543.07,0.00040235,2]
[343225929,1732497032219,-1000.0,0.00040507,2]
[343225930,1732497032228,-200.0,0.00040507,60]
[343225931,1732497032238,-1000.0,0.00040507,2]
[343225932,1732497032247,-500.0,0.00040916,2]
[343225933,1732497032256,-418.58330395,0.00040916,2]
[343225934,1732497032266,-158.18,0.00041096,2]
[343225935,1732497032275,-9887.98,0.00041096,2]
[343225936,1732497032284,-370.28,0.00041121,30]
[343225937,1732497032294,-216.09,0.0004169,30]
[343225938,1732497032303,-180.08,0.0004169,30]
[343225939,1732497032313,-150.07,0.0004169,30]
[343225940,1732497032322,-750.35,0.0004169,30]
[343225941,1732497032331,-12666.732,0.000417,2]
[343225942,1732497032341,-334.69,0.0004183,2]
[343225943,1732497032350,-176.46,0.00041837,2]
[343225944,1732497032359,-250.0,0.00041849,2]
[343225945,1732497032368,-250.0,0.00041849,2]
[343225946,1732497032382,-500.0,0.00041878,2]
[343225947,1732497032391,-166.4,0.00042083,2]
[343225948,1732497032400,-211.36,0.00042083,2]
[343225949,1732497032410,-200.0,0.00042257,2]
[343225950,1732497032419,-150.99,0.00042257,2]
[343225951,1732497032430,-4302.0,0.00042257,30]
[343225952,1732497032440,-200.0,0.00042319,2]
[343225953,1732497032451,-150.52,0.00042347,2]
[343225954,1732497032460,-155.89,0.00042371,120]
[343225955,1732497032469,-165.33,0.00042443,120]
[343225956,1732497032478,-543.07,0.00042499,2]
[343225957,1732497032487,-2199.10963414,0.00042522,15]
[343225958,1732497032497,-2933.35292955,0.00042585,7]
[343225959,1732497032506,-250.0,0.00042586,120]
[343225960,1732497032516,-1000.0,0.00042595,2]
[343225961,1732497032525,-6877.37135346,0.00042596,15]
[343225962,1732497032535,-23900.0,0.00042622,2]
[343225963,1732497032545,-390.75,0.00042933,120]
[343225964,1732497032554,-250.0,0.00043,120]
[343225965,1732497032563,-250.0,0.00043,45]
[343225966,1732497032573,-250.0,0.00043,60]
[343225967,1732497032582,-818.03771043,0.0004304,2]
[343225968,1732497032591,-5072.94624004,0.00043078,2]
[343225969,1732497032600,-845.222,0.00043087,66]
[343225970,1732497032610,-167.221,0.00043087,66]
[343225972,1732497032619,-5388.30678064,0.00043088,30]
[343225974,1732497032633,-52250.07009044,0.00043088,2]
[343225976,1732497032643,-151.0,0.00043088,14]
[343225977,1732497032652,-151.0,0.00043088,14]
[343225978,1732497032661,-151.0,0.00043088,14]
[343225979,1732497032670,-151.0,0.00043088,14]
[343225980,1732497032680,-151.0,0.00043088,14]
[343225982,1732497032689,-161.146629,0.00043088,14]
[343225984,1732497032698,-161.146629,0.00043088,14]
[343225985,1732497032707,-151.0,0.00043088,14]
[343225986,1732497032717,-151.0,0.00043088,14]
[343225988,1732497032727,-151.0,0.00043088,14]
[343225989,1732497032736,-251.836039,0.00043088,14]
[343225990,1732497032746,-251.836039,0.00043088,14]
[343225991,1732497032755,-157.134609,0.00043088,14]
[343225992,1732497032764,-157.134609,0.00043088,14]
[343225993,1732497032774,-151.0,0.00043088,14]
[343225994,1732497032783,-281.342922,0.00043088,14]
[343225995,1732497032792,-157.893113,0.00043088,14]
[343225996,1732497032802,-151.0,0.00043088,14]
[343225997,1732497032811,-317.103292,0.00043088,14]
[343225998,1732497032821,-317.103292,0.00043088,14]
[343225999,1732497032830,-669.854011,0.00043088,14]
[343226000,1732497032839,-669.854011,0.00043088,14]
[343226001,1732497032849,-152.686298,0.00043088,14]
[343226002,1732497032858,-151.0,0.00043088,14]
[343226003,1732497032868,-151.0,0.00043088,14]
[343226004,1732497032883,-151.0,0.00043088,14]
[343226005,1732497032893,-151.0,0.00043088,14]
[343226006,1732497032902,-1694.807735,0.00043088,14]
[343226007,1732497032911,-151.0,0.00043088,7]
[343226008,1732497032920,-1003.10582,0.00043088,14]
[343226009,1732497032930,-509.499357,0.00043088,14]
[343226010,1732497032940,-1694.807735,0.00043088,14]
[343226011,1732497032949,-509.499357,0.00043088,14]
[343226012,1732497032958,-1003.10582,0.00043088,14]
[343226013,1732497032968,-151.0,0.00043088,14]
[343226014,1732497032977,-241.167386,0.00043088,14]
[343226015,1732497032988,-421.93189667,0.00043094,2]
[343226016,1732497032997,-2199.10963411,0.00043286,15]
[343226017,1732497033007,-6877.37135343,0.00043352,15]
[343226018,1732497033016,-226.06,0.00043459,2]
[343226019,1732497033026,-577.709,0.0004347,18]
[343226020,1732497033035,-484.263,0.000436,120]
[343226021,1732497033049,-172.97,0.0004361,2]
[343226022,1732497033059,-168.16195064,0.000438,13]
[343226023,1732497033069,-384.39317569,0.000438,28]
[343226024,1732497033079,-319.69195543,0.000438,2]
[343226025,1732497033089,-2248.0,0.00043836,15]
[343226026,1732497033099,-6012.0,0.00043836,15]
[343226027,1732497033109,-151.0,0.00043836,14]
[343226028,1732497033118,-317.103292,0.00043836,14]
[343226029,1732497033131,-317.103292,0.00043836,14]
[343226030,1732497033142,-669.854011,0.00043836,14]
[343226031,1732497033152,-669.854011,0.00043836,14]
[343226032,1732497033162,-151.0,0.00043836,14]
[343226033,1732497033172,-151.0,0.00043836,14]
[343226034,1732497033181,-151.0,0.00043836,14]
[343226035,1732497033191,-151.0,0.00043836,14]
[343226036,1732497033201,-1694.807735,0.00043836,14]
[343226037,1732497033211,-151.0,0.00043836,7]
[343226038,1732497033221,-1003.10582,0.00043836,14]
[343226039,1732497033231,-509.499357,0.00043836,14]
[343226040,1732497033242,-1694.807735,0.00043836,14]
[343226041,1732497033252,-509.499357,0.00043836,14]
[343226042,1732497033262,-1003.10582,0.00043836,14]
[343226043,1732497033272,-151.0,0.00043836,14]
[343226044,1732497033282,-1000.0,0.00043899,2]
[343226045,1732497033292,-151.0,0.00043899,14]
[343226046,1732497033302,-151.0,0.00043899,14]
[343226047,1732497033311,-151.0,0.00043899,14]
[343226048,1732497033321,-151.0,0.00043899,14]
[343226049,1732497033331,-202.072349,0.00043899,14]
[343226050,1732497033340,-219.306005,0.00043899,14]
[343226051,1732497033350,-219.306005,0.00043899,14]
[343226052,1732497033360,-151.0,0.00043899,14]
[343226053,1732497033370,-151.0,0.00043899,14]
[343226054,1732497033517,-151.0,0.00043899,14]
[343226055,1732497033528,-185.128296,0.00043899,14]
[343226056,1732497033537,-1000.0,0.00043899,120]
[343226057,1732497033547,-151.0,0.00043899,14]
[343226058,1732497033556,-151.0,0.00043899,14]
[343226059,1732497033565,-151.0,0.00043899,14]
[343226060,1732497033574,-151.0,0.00043899,14]
[343226061,1732497033583,-151.0,0.00043899,14]
[343226062,1732497033593,-161.146629,0.00043899,14]
[343226063,1732497033603,-161.146629,0.00043899,14]
[343226064,1732497033612,-151.0,0.00043899,14]
[343226065,1732497033622,-151.0,0.00043899,14]
[343226066,1732497033634,-151.0,0.00043899,14]
[343226067,1732497033643,-251.836039,0.00043899,14]
[343226068,1732497033652,-251.836039,0.00043899,14]
[343226069,1732497033662,-157.134609,0.00043899,14]
[343226070,1732497033671,-157.134609,0.00043899,14]
[343226071,1732497033684,-151.0,0.00043899,14]
[343226072,1732497033694,-1000.0,0.00043899,2]
[343226073,1732497033704,-303262.05729622,0.000439,2]
[343226074,1732497033713,-151.0,0.000439,14]
[343226075,1732497033723,-151.0,0.000439,7]
[343226076,1732497033732,-151.0,0.000439,7]
[343226077,1732497033743,-151.0,0.000439,14]
[343226078,1732497033752,-151.0,0.000439,14]
[343226079,1732497033762,-151.0,0.000439,7]
[343226080,1732497033771,-151.0,0.000439,7]
[343226081,1732497033782,-151.0,0.000439,14]
[343226082,1732497033791,-151.0,0.000439,14]
[343226083,1732497033801,-200.0,0.000439,7]
[343226084,1732497033810,-151.0,0.000439,14]
[343226085,1732497033819,-151.0,0.000439,14]
[343226086,1732497033829,-151.0,0.000439,14]
[343226087,1732497033839,-151.0,0.000439,14]
[343226088,1732497033848,-151.0,0.000439,14]
[343226089,1732497033857,-151.0,0.000439,14]
[343226090,1732497033867,-269.283698,0.000439,14]
[343226091,1732497033878,-269.283698,0.000439,14]
[343226092,1732497033888,-269.283698,0.000439,14]
[343226093,1732497033897,-269.283698,0.000439,14]
[343226094,1732497033907,-151.0,0.000439,14]
[343226095,1732497033917,-151.0,0.000439,14]
[343226096,1732497033927,-151.0,0.000439,14]
[343226097,1732497033937,-151.0,0.000439,14]
[343226098,1732497033947,-151.0,0.000439,14]
[343226099,1732497033957,-151.0,0.000439,14]
[343226100,1732497033967,-151.0,0.000439,14]
[343226101,1732497033976,-151.0,0.000439,14]
[343226102,1732497033985,-151.0,0.000439,14]
[343226103,1732497033995,-219.306005,0.000439,14]
[343226104,1732497034005,-219.306005,0.000439,14]
[343226105,1732497034014,-151.0,0.000439,14]
[343226106,1732497034024,-151.0,0.000439,14]
[343226107,1732497034033,-151.0,0.000439,14]
[343226108,1732497034042,-151.0,0.000439,14]
[343226109,1732497034051,-151.0,0.000439,14]
[343226110,1732497034061,-261.068323,0.000439,14]
[343226111,1732497034071,-151.0,0.000439,14]
[343226112,1732497034080,-151.0,0.000439,14]
[343226113,1732497034090,-151.0,0.000439,14]
[343226114,1732497034099,-151.0,0.000439,14]
[343226115,1732497034109,-151.0,0.000439,14]
[343226116,1732497034118,-151.0,0.000439,14]
[343226117,1732497034131,-151.0,0.000439,14]
[343226118,1732497034141,-151.0,0.000439,14]
[343226119,1732497034150,-151.0,0.000439,14]
[343226120,1732497034160,-151.0,0.000439,14]
[343226121,1732497034169,-151.0,0.000439,14]
[343226122,1732497034179,-151.0,0.000439,14]
[343226123,1732497034189,-151.0,0.000439,14]
[343226124,1732497034198,-151.0,0.000439,14]
[343226125,1732497034207,-151.0,0.000439,14]
[343226126,1732497034217,-151.0,0.000439,14]
[343226127,1732497034227,-151.0,0.000439,14]
[343226128,1732497034236,-151.0,0.000439,14]
[343226129,1732497034245,-151.0,0.000439,14]
[343226130,1732497034254,-151.0,0.000439,14]
[343226131,1732497034263,-151.0,0.000439,14]
[343226132,1732497034273,-151.0,0.000439,14]
[343226133,1732497034282,-151.0,0.000439,14]
[343226134,1732497034292,-151.0,0.000439,14]
[343226135,1732497034301,-186.833173,0.000439,14]
[343226136,1732497034311,-265.491763,0.000439,14]
[343226137,1732497034320,-265.491763,0.000439,14]
[343226138,1732497034330,-151.0,0.000439,14]
[343226139,1732497034339,-151.0,0.000439,14]
[343226140,1732497034349,-265.491763,0.000439,14]
[343226141,1732497034362,-265.491763,0.000439,14]
[343226142,1732497034371,-151.0,0.000439,14]
[343226143,1732497034385,-183.439238,0.000439,14]
[343226144,1732497034395,-151.0,0.000439,14]
[343226145,1732497034405,-151.0,0.000439,14]
[343226146,1732497034414,-151.0,0.000439,14]
[343226147,1732497034424,-151.0,0.000439,14]
[343226148,1732497034435,-753.188359,0.000439,14]
[343226149,1732497034446,-753.188359,0.000439,14]
[343226150,1732497034455,-151.0,0.000439,14]
[343226151,1732497034465,-151.0,0.000439,14]
[343226152,1732497034475,-151.0,0.000439,14]
[343226153,1732497034485,-151.0,0.000439,14]
[343226154,1732497034494,-254.74407,0.000439,14]
[343226155,1732497034503,-151.0,0.000439,14]
[343226156,1732497034513,-274.166186,0.000439,14]
[343226157,1732497034524,-151.0,0.000439,14]
[343226158,1732497034535,-151.0,0.000439,14]
[343226159,1732497034544,-151.0,0.000439,14]
[343226160,1732497034554,-151.0,0.000439,14]
[343226161,1732497034563,-151.0,0.000439,14]
[343226162,1732497034572,-151.0,0.000439,14]
[343226163,1732497034582,-151.0,0.000439,14]
[343226164,1732497034591,-151.0,0.000439,14]
[343226165,1732497034600,-151.0,0.000439,14]
[343226166,1732497034610,-229.812828,0.000439,14]
[343226167,1732497034620,-229.812828,0.000439,14]
[343226168,1732497034633,-229.812828,0.000439,14]
[343226169,1732497034642,-229.812828,0.000439,14]
[343226170,1732497034651,-161.146629,0.000439,14]
[343226171,1732497034661,-161.146629,0.000439,14]
[343226172,1732497034670,-161.146629,0.000439,14]
[343226173,1732497034680,-161.146629,0.000439,14]
[343226174,1732497034689,-151.0,0.000439,14]
[343226175,1732497034700,-151.0,0.000439,14]
[343226176,1732497034709,-151.0,0.000439,14]
[343226177,1732497034718,-151.0,0.000439,14]
[343226178,1732497034728,-151.0,0.000439,14]
[343226179,1732497034737,-151.0,0.000439,14]
[343226180,1732497034747,-151.0,0.000439,14]
[343226181,1732497034757,-151.0,0.000439,14]
[343226182,1732497034766,-251.836039,0.000439,14]
[343226183,1732497034776,-251.836039,0.000439,14]
[343226184,1732497034785,-251.836039,0.000439,14]
[343226185,1732497034795,-251.836039,0.000439,14]
[343226186,1732497034804,-157.134609,0.000439,14]
[343226187,1732497034814,-157.134609,0.000439,14]
[343226188,1732497034823,-157.134609,0.000439,14]
[343226189,1732497034832,-157.134609,0.000439,14]
[343226190,1732497034842,-151.0,0.000439,14]
[343226191,1732497034852,-317.103292,0.000439,14]
[343226192,1732497034861,-317.103292,0.000439,14]
[343226193,1732497034871,-317.103292,0.000439,14]
[343226194,1732497034883,-317.103292,0.000439,14]
[343226195,1732497034893,-669.854011,0.000439,14]
[343226196,1732497034903,-669.854011,0.000439,14]
[343226197,1732497034913,-669.854011,0.000439,14]
[343226198,1732497034923,-669.854011,0.000439,14]
[343226199,1732497034933,-151.0,0.000439,14]
[343226200,1732497034943,-151.0,0.000439,14]
[343226201,1732497034953,-151.0,0.000439,14]
[343226202,1732497034964,-151.0,0.000439,14]
[343226203,1732497034973,-151.0,0.000439,14]
[343226204,1732497034983,-151.0,0.000439,14]
[343226205,1732497034994,-222.498659,0.000439,14]
[343226206,1732497035004,-1694.807735,0.000439,14]
[343226207,1732497035013,-151.0,0.000439,7]
[343226208,1732497035023,-1694.807735,0.000439,14]
[343226209,1732497035032,-151.0,0.000439,7]
[343226210,1732497035043,-509.499357,0.000439,14]
[343226211,1732497035052,-509.499357,0.000439,14]
[343226212,1732497035062,-1003.10582,0.000439,14]
[343226213,1732497035072,-1003.10582,0.000439,14]
[343226214,1732497035082,-1694.807735,0.000439,14]
[343226215,1732497035091,-1694.807735,0.000439,14]
[343226216,1732497035101,-509.499357,0.000439,14]
[343226217,1732497035110,-509.499357,0.000439,14]
[343226218,1732497035120,-1003.10582,0.000439,14]
[343226219,1732497035131,-1003.10582,0.000439,14]
[343226220,1732497035140,-151.0,0.000439,14]
[343226221,1732497035150,-151.0,0.000439,14]
[343226222,1732497035159,-176.46,0.00043929,2]
[343226223,1732497035168,-500.0,0.00043973,10]
[343226224,1732497035178,-10105.2760945,0.0004399,2]
[343226225,1732497035187,-965.7637052,0.0004399,2]
[343226226,1732497035196,-269.283698,0.0004399,14]
[343226227,1732497035205,-269.283698,0.0004399,14]
[343226228,1732497035215,-151.0,0.0004399,14]
[343226229,1732497035224,-160.623749,0.0004399,14]
[343226230,1732497035233,-178.671385,0.0004399,14]
[343226231,1732497035243,-151.0,0.0004399,14]
[343226232,1732497035252,-151.0,0.0004399,14]
[343226233,1732497035261,-151.0,0.0004399,14]
[343226234,1732497035271,-151.0,0.0004399,14]
[343226235,1732497035384,-219.306005,0.0004399,14]
[343226236,1732497035394,-219.306005,0.0004399,14]
[343226237,1732497035404,-151.0,0.0004399,14]
[343226238,1732497035413,-151.0,0.0004399,14]
[343226239,1732497035422,-151.0,0.0004399,14]
[343226240,1732497035434,-151.0,0.0004399,14]
[343226241,1732497035444,-151.0,0.0004399,14]
[343226242,1732497035454,-151.0,0.0004399,14]
[343226243,1732497035463,-155.171884,0.0004399,14]
[343226244,1732497035474,-151.0,0.0004399,14]